Cogmind - Beta 13 @@@ ROGUE MODE // 2024.04.01 @ 03:53:03 Player: SnowyImp Result: Destroyed by Y-45 Defender with Heavy Assault Rifle Performance ------------- Evolutions (1) 500 Regions Visited (2) 400 Robots Destroyed (16) 80 Value Destroyed (461) 461 Prototype IDs (2) 40 Alien Tech Used (0) 0 Bonus (0) 0 TOTAL SCORE: 1481 Bonus ------- None Cogmind --------- Core Integrity 0/400 Matter 300/300 Energy 56/100 System Corruption 0% Temperature Cool (0) Movement Core (100) Ox1 Location -9/Materials Parts ------- > --- POWER (1) -------- (None) > --- PROPULSION (4) --- (None) > --- UTILITY (2) ------ Heat Sink ECM Suite > --- WEAPON (2) ------- Scythe > --- INVENTORY (5) ---- Ion Engine Light Ion Engine Assault Rifle Light Cannon Mining Claw Peak State ------------ > --- POWER ------------ Ion Engine > --- PROPULSION ------- Aluminum Leg Aluminum Leg Aluminum Leg Improved Aluminum Leg > --- UTILITY ---------- Heat Sink Sensor Array > --- WEAPON ----------- Light Cannon Light Cannon > --- INVENTORY -------- Ion Engine Assault Rifle Light Cannon Mining Claw Mining Claw [Rating: 10] Favorites ----------- Power Ion Engine Engine Ion Engine Propulsion Aluminum Leg Leg Aluminum Leg Utility Heat Sink Device Heat Sink Weapon Light Cannon Energy Gun Medium Laser Ballistic Gun Assault Rifle Ballistic Cannon Light Cannon Slashing Weapon Mining Claw Special Melee Weapon Datajack Build | -11 -10 -9 ------- Run | Yrd Mat Mat Slots Evolved 2 | . . 2 Power . | . . . Propulsion 2 | . . 2 Utility . | . . . Weapon . | . . . Parts Attached 23 | 6 7 10 Power 3 | 1 . 2 Engine 3 | 1 . 2 Core . | . . . Reactor . | . . . Propulsion 7 | 2 2 3 Treads . | . . . Leg 7 | 2 2 3 Wheel . | . . . Hover . | . . . Flight . | . . . Utility 3 | . 1 2 Device 3 | . 1 2 Storage . | . . . Processor . | . . . Hackware . | . . . Protection . | . . . Artifact . | . . . Weapon 10 | 3 4 3 Energy Gun 2 | 2 . . Energy Cannon . | . . . Ballistic Gun 1 | 1 . . Ballistic Cannon 2 | . 2 . Launcher . | . . . Special Weapon . | . . . Impact Weapon . | . . . Slashing Weapon 4 | . 2 2 Piercing Weapon . | . . . Special Melee Weapon 1 | . . 1 Unidentified Prototypes . | . . . Parts Lost 11 | . . 11 Power 2 | . . 2 Propulsion 5 | . . 5 Utility 1 | . . 1 Weapon 3 | . . 3 Highest Loss Streak 6 | . . 6 To Critical Strikes . | . . . Average Slot Usage (%) 77 | . 71 80 Engine 9 | . 14 7 Leg 32 | . 28 34 Device 13 | . . 19 Energy Gun 2 | . 7 . Ballistic Cannon 13 | . 14 13 Slashing Weapon 5 | . 7 4 Naked Turns . | . . . Heaviest Build 13 | 9 12 13 Greatest Support 43 | 20 20 43 Greatest Overweight (x) 3 | . . 3 Average Overweight (x) . | . . . Largest Inventory Capacity 5 | 5 5 5 Average Capacity 5 | 5 5 5 Most Carried 5 | 2 5 5 Average Carried 4 | 1 3 4 Final Capacity 5 | 5 5 5 Final Carried 5 | 2 5 5 Class Distribution -------------------- 57% | Mutant 42% | Scavenger-Mutant Dominant Class ---------------- Mutant | -10/Materials Scavenger-Mutant | -9/Materials Resources | -11 -10 -9 ----------- Run | Yrd Mat Mat Matter Collected 591 | 227 9 355 Remotely . | . . . Salvage Created 465 | . 155 310 Parts 35 | . 11 24 Haulers Intercepted . | . . . Recyclers Shooed . | . . . Parts Field Recycled . | . . . Retrieved Matter . | . . . Parts Self-Destructed . | . . . Prevented . | . . . Kills | -11 -10 -9 ------- Run | Yrd Mat Mat Combat Hostiles Destroyed 15 | . 4 11 Melee 6 | . 1 5 Guns 1 | . 1 . Cannons 8 | . 2 6 Classes Destroyed 5 | . 1 4 Worker 1 | . . 1 Swarmer 4 | . . 4 Grunt 9 | . 4 5 Brawler 1 | . . 1 Sentry 1 | . . 1 Best Kill Streak 5 | . 2 5 Combat Bots Only 4 | . 2 4 Max Kills in Single Turn 1 | . 1 1 Gunslinging . | . . . Exploded . | . . . Melee 1 | . 1 1 Uniques/NPCs Destroyed . | . . . Combat | -11 -10 -9 -------- Run | Yrd Mat Mat Hostile Shots Fired 171 | . 33 138 Missed 51 | . 14 37 Damage Taken 1403 | . 198 1205 Core 445 | . 33 412 Absorbed by Shields . | . . . Core Remaining (%) 93 | 100 86 . Volleys Fired 35 | . 15 20 Largest 2 | . 2 2 Hottest 90 | . 90 70 Shots Fired 68 | . 30 38 Gun 14 | . 14 . Cannon 54 | . 16 38 Launcher . | . . . Special . | . . . Kinetic 54 | . 16 38 Thermal 7 | . 7 . Explosive . | . . . Electromagnetic 7 | . 7 . Robot Hit Streak 9 | . 4 9 Robot Miss Streak 5 | . 5 3 Penetration Max . | . . . Secondary Targets . | . . . Shots Hit Robots 58 | . 14 44 Core Hits 18 | . 5 13 Critical Kills . | . . . Critical Parts Destroyed . | . . . Critical Strikes 2 | . 1 1 Blast 1 | . 1 . Sever 1 | . . 1 Melee Attacks 23 | . 1 22 Impact . | . . . Slashing 19 | . 1 18 Piercing . | . . . Sneak Attacks 2 | . . 2 Combat Hostiles . | . . . Follow-up Attacks . | . . . Damage Inflicted 1151 | . 227 924 Guns 77 | . 77 . Cannons 595 | . 125 470 Explosions . | . . . Melee 479 | . 25 454 Ramming . | . . . Kinetic 595 | . 125 470 Thermal 50 | . 50 . Explosive . | . . . Electromagnetic 27 | . 27 . Impact . | . . . Slashing 479 | . 25 454 Piercing . | . . . Highest Corruption . | . . . Average Corruption . | . . . Corruption Purged . | . . . Corruption Blocked . | . . . Overload Shots . | . . . Overflow Damage 9 | . . 9 Projectiles . | . . . Explosions . | . . . Melee 9 | . . 9 Knockbacks 6 | . 1 5 Impact . | . . . Kinetic 6 | . 1 5 Secondary . | . . . Self-Inflicted Damage . | . . . Shots . | . . . Rammed . | . . . Targets Rammed . | . . . Kicked . | . . . Crushed . | . . . Highest Temperature 154 | . 154 17 Average Temperature 62 | . 66 9 Received Heat Transfer 567 | . 114 453 Siege Activations . | . . . Robots Corrupted . | . . . Combat Hostiles . | . . . Parts Fried 1 | . 1 . Impact Corruptions . | . . . Robots Melted . | . . . Combat Hostiles . | . . . Parts Melted . | . . . Heat Transferred 148 | . 148 . Parts Sabotaged . | . . . Parts Stolen . | . . . Parts Stripped . | . . . Power Chain Reactions . | . . . Alert | -11 -10 -9 ------- Run | Yrd Mat Mat Peak Influence 316 | . 131 316 Initial 55 | . . 55 Average 136 | . 63 192 Maximum Alert Level 1 | . . 1 Low Security (%) 69 | 100 100 50 Level 1 30 | . . 50 Level 2 . | . . . Level 3 . | . . . Level 4 . | . . . Level 5 . | . . . High Security . | . . . Max Security . | . . . Squads Dispatched 2 | . 2 . Investigation . | . . . Extermination . | . . . Reinforcement 2 | . 2 . Assault . | . . . Garrison . | . . . Intercept . | . . . Searches Triggered . | . . . Construction Impeded . | . . . Haulers Reinforced . | . . . Active Scanning Responses . | . . . Cargo Convoy Interrupts . | . . . Stealth | -11 -10 -9 --------- Run | Yrd Mat Mat Distress Signals 1 | . . 1 Communications Jammed . | . . . Distress Signals . | . . . Times Spotted 28 | . 8 20 Peak Tracking Total 7 | . 3 7 Tactical Retreats 1 | . . 1 Traps | -11 -10 -9 ------- Run | Yrd Mat Mat Traps Triggered . | . . . Indirectly . | . . . Trap Hack Attempts . | . . . Triggered . | . . . Disarmed . | . . . Reprogrammed . | . . . Reused . | . . . Traps Extracted . | . . . Installed . | . . . Triggered . | . . . Machines | -11 -10 -9 ---------- Run | Yrd Mat Mat Machines Disabled 2 | . 1 1 Max in Single Turn 1 | . 1 1 Machines Repaired . | . . . Machines Dismantled . | . . . Machines Sabotaged . | . . . Overloaded Fab Kills . | . . . Hacking | -11 -10 -9 --------- Run | Yrd Mat Mat Machines Accessed 1 | . . 1 Terminals 1 | . . 1 Fabricators . | . . . Repair Stations . | . . . Recycling Units . | . . . Scanalyzers . | . . . Garrison Access . | . . . Total Hacks 3 | . . 3 Successful 2 | . . 2 Failed 1 | . . 1 Catastrophic . | . . . Database Lockouts . | . . . Manual . | . . . Terminals 3 | . . 3 Fabricators . | . . . Repair Stations . | . . . Recycling Units . | . . . Scanalyzers . | . . . Garrison Access . | . . . Terminal Hacks 2 | . . 2 Prototype ID Bank 1 | . . 1 Branch Access Points 1 | . . 1 Fabricator Hacks . | . . . Repair Station Hacks . | . . . Recycling Unit Hacks . | . . . Scanalyzer . | . . . Garrison Access Hacks . | . . . Unauthorized Hacks . | . . . Terminals . | . . . Fabricators . | . . . Repair Stations . | . . . Recycling Units . | . . . Scanalyzers . | . . . Garrison Access . | . . . Data Cores Recovered . | . . . Used . | . . . Hacking Detections 1 | . . 1 Full Trace Events . | . . . Feedback Events . | . . . Feedback Blocked . | . . . Robot Schematics Acquired . | . . . Robots Built . | . . . Authchips . | . . . Time . | . . . Total Robot Build Rating . | . . . Part Schematics Acquired . | . . . Parts Built . | . . . Authchips . | . . . Time . | . . . Total Part Build Rating . | . . . Parts Repaired . | . . . Time . | . . . Parts Recycled . | . . . Recycled Matter . | . . . Retrieved Matter . | . . . Retrieved Components . | . . . Parts Scanalyzed . | . . . Part Schematics Acquired . | . . . Parts Damaged . | . . . Bothacking | -11 -10 -9 ------------ Run | Yrd Mat Mat Used RIF Installer . | . . . Robots Hacked 1 | . . 1 Non-combat . | . . . Combat 1 | . . 1 Robot Hacks Applied 1 | . . 1 parse_system 1 | . . 1 Relay Couplers Released . | . . . Fabnet Peak Effective % . | . . . Robots Rewired . | . . . Allies Hacked . | . . . Hacks Repelled . | . . . Allies | -11 -10 -9 -------- Run | Yrd Mat Mat Total Allies . | . . . Largest Group . | . . . Highest-Rated Group . | . . . Highest-Rated Ally . | . . . Total Orders . | . . . Ally Attacks . | . . . Total Damage . | . . . Kills . | . . . Allies Corrupted . | . . . Allies Melted . | . . . Intel | -11 -10 -9 ------- Run | Yrd Mat Mat Robot Analysis Total . | . . . Derelict Logs Recovered . | . . . Drone Launches . | . . . Drone Recoveries . | . . . Exploration | -11 -10 -9 ------------- Run | Yrd Mat Mat Turns Passed 535 | 54 155 326 Spaces Moved 271 | 38 77 156 Core 13 | 3 . 10 Treads . | . . . Legs 258 | 35 77 146 Wheels . | . . . Hover . | . . . Flight . | . . . Fastest Speed 50 | 50 120 100 Average Speed 119 | 114 120 120 Slowest Speed 200 | 120 120 200 Overloaded Moves . | . . . Propulsion Burnouts . | . . . Robots Hopped . | . . . Cave-ins Triggered . | . . . Exploration Rate (%) 14 | 3 24 17 Regions Visited 2 Branch Regions . Pre-discovered Areas . | . . . Known Exits Taken . | . . . Unknown Exits Taken 2 | 1 1 . Scrap Searched . | . . . Spaces Dug . | . . . Terrain Destroyed . | . . . Melee . | . . . Projectile . | . . . AOE . | . . . Terrain Rammed . | . . . Walls Destroyed . | . . . Machines Disabled . | . . . Actions | -11 -10 -9 --------- Run | Yrd Mat Mat Total 370 | 45 108 217 Wait 8 | . . 8 Move 269 | 37 76 156 Hop . | . . . Pick Up 5 | 2 3 . Fast Attach 17 | 5 5 7 Attach 1 | . . 1 Detach . | . . . Swap 5 | 1 2 2 Drop 7 | . 6 1 Fire 35 | . 15 20 Melee 23 | . 1 22 Ram . | . . . Kick . | . . . Crush . | . . . Escape Stasis . | . . . Rewire . | . . . Trap . | . . . Miscellaneous . | . . . Route ------- -11/Scrapyard -10/Materials -9/Materials (discovered 2 exits: Min / Sto) History --------- Turn | Location | Event 4 | -11/Scrapyard | Discovered new exit (range 16) 55 | -11/Scrapyard | Entered Materials 164 | -10/Materials | Discovered new exit (range 16) 210 | -10/Materials | Entered another Materials area 210 | -9/Materials | Evolved 2 slots: Propulsion x2 278 | -9/Materials | Identified exit to Mines 278 | -9/Materials | Identified exit to Storage 453 | -9/Materials | Lost 5 parts (1p1n1u2w) 488 | -9/Materials | Core integrity fell below 50% 512 | -9/Materials | Core integrity fell below 20% 536 | -9/Materials | Destroyed by Y-45 Defender with Heavy Assault Rifle Last Messages --------------- 00453_ Acquired 2 matter. 00456_ Sneak attack on A-02 Transporter. 00459_ Aluminum Leg destroyed. 00476_ Acquired Datajack. 00479_ Jacked L-31 Rogue... >>parse_system Reading system data... 00480_ Aluminum Leg destroyed. 00481_ Jacked L-31 Rogue... 00493_ Imp. Aluminum Leg destroyed. 00496_ Aluminum Leg destroyed. 00500_ Ion Engine destroyed. 00502_ Dropped Mining Claw. 00505_ G-34 Mercenary destroyed. 00507_ L-31 Rogue destroyed. 00508_ Datajack destroyed. 00516_ G-34 Mercenary Sml. Laser severed. 00518_ Acquired 38 matter. 00519_ Y-45 Defender destroyed. 00520_ Acquired 9 matter. Map ----- +----------------------------------------------------+ | ####= #????????????????????????????????????????? | | =#%%= #????????????????????????????????????????? | | * #=%[%##### ????????????????????????????? | | %=*+==%%% ????????????????????????????? | | "" ####+##### ????????????????????????????? | | " =#?????????? ???????????????????????????????? | | "*%#?????????? #???????????????????????????????? | | #?????????? #???????????????????????????????? | | #/##?????????# #???????????????????????????????? | | # #######+#### #???????????????????????????????? | | # #???????????????????????????????? | | # #???????????????????????????????? | | # """ +???????????????????????????????? | | # """ #???????????????????????????????? | | # """ #????????????????????????????????? | | # ####### =#????????????????????????????????? | | # #?????# #????????????????????????????????? | | #+#?????# #????????????????????????????????? | | ????????# ^ /[#????????????????????????????????? | | ????????# /[[#????????????????????????????????? | | ????????# /[[###??????????????????????????????? | | ??????### ^ #?#####????????????????????????? | | ??# ### [[#####????????????????????? | | ??+ *!Y=%//#????????????????????? | | ??# ### =!=%//#????????????????????? | | ??### #?##!##@**#????????????????????? | | ????# #########+###??# ##/**#????????????????????? | | ????# ???????????????# ## [[#????????????????????? | | ????#????????????????# ## [[#????????????????????? | | ?????????????????????# ######????????????????????? | | ?????????????????????# #?????????????????????????? | | ?????????????????????? ??????????????????????????? | | ?????????????????????? ??????????????????????????? | | ?????????????????????? ??????????????????????????? | | ?????????????????????? ??????????????????????????? | | ?????????????????????? ??????????????????????????? | | ?????????????????????? ??????????????????????????? | | ?????????????????????? ??????????????????????????? | | ?????????????????????????????????????????????????? | | ?????????????????????????????????????????????????? | | ?????????????????????????????????????????????????? | | ?????????????????????????????????????????????????? | | ?????????????????????????????????????????????????? | | ?????????????????????????????????????????????????? | | ?????????????????????????????????????????????????? | | ?????????????????????????????????????????????????? | | ?????????????????????????????????????????????????? | | ?????????????????????????????????????????????????? | | ?????????????????????????????????????????????????? | | ?????????????????????????????????????????????????? | +----------------------------------------------------+ Best States ------------- Heat Dissipation 38 Energy Generation 10 Energy Capacity 250 Matter Stores 300 Matter Capacity 300 Sight Range 16 Robot Scan Range 14 Terrain Scan Density 10 ECM Strength 1 Evasion (%) 55 Item Schematics ----------------- None Robot Schematics ------------------ None Fabricated ------------ Nothing Alien Tech Used ----------------- None Achievements -------------- None Challenges ------------ None Game ------ Seed DefenseWeightArmor Manual? 0 Play Time 00:10:36 Cumulative 4.1 hours Start 2024.04.01 @ 03:44:17 End 2024.04.01 @ 03:53:03 Sessions 1 Manual Loads 0 Difficulty Rogue Special Mode None Game No. 5 Rogue 5 Adventurer 0 Explorer 0 Win Type - Total 0 Types 0/0/0/0/0/0/0/0/0 Lore% 3 Gallery% 9 Achievement% 10 Wizard Run 0 Options --------- Layout 1 ASCII 0 Keyboard 0 Movement Mouse Keybinds 0 Fullscreen 1 Font 24/Crisp Map View 50x35 Zoom Use 0% Tactical HUD 1 Map Filters NONE Filters NONE Steam 1 RUN: 0a464848-2dcb-422d-afc0-0b170ef93c46